Cogmind - Beta 16 @@@ ROGUE MODE // 2026.01.27 @ 17:08:32 Player: Assis Result: Destroyed by as-94818 with Assembled Heavy Rifle Performance ------------- Evolutions (0) 0 Regions Visited (2) 400 Robots Destroyed (9) 45 Value Destroyed (106) 106 Prototype IDs (0) 0 Alien Tech Used (0) 0 Bonus (0) 0 TOTAL SCORE: 551 Bonus ------- None Cogmind --------- Core Integrity 0/250 Matter 300/300 Energy 98/100 System Corruption 0% Temperature Cool (0) Movement Core (50) Location -10/Mines Parts ------- > --- POWER (1) -------- (None) > --- PROPULSION (2) --- (None) > --- UTILITY (2) ------ Structural Scanner > --- WEAPON (2) ------- (None) > --- INVENTORY (5) ---- Light Treads High-capacity Storage Unit Terrain Scan Processor Light Assault Rifle Peak State ------------ > --- POWER ------------ Light Ion Engine > --- PROPULSION ------- Light Treads Light Treads > --- UTILITY ---------- Improved Terrain Scanner Seismic Detector > --- WEAPON ----------- Heavy Assault Rifle Heavy Assault Rifle > --- INVENTORY -------- Assault Rifle Light Assault Rifle [Rating: 11] Favorites ----------- Power Light Ion Engine Engine Light Ion Engine Propulsion Light Treads Treads Light Treads Utility Improved Terrain Scanner Device Improved Terrain Scanner Storage Small Storage Unit Weapon Heavy Assault Rifle Ballistic Gun Heavy Assault Rifle Special Weapon Welding Torch Build | -11 -10 -10 ------- Run | Yrd Mat Min Slots Evolved . | . . . Power . | . . . Propulsion . | . . . Utility . | . . . Weapon . | . . . Parts Attached 12 | 8 4 . Power 1 | 1 . . Engine 1 | 1 . . Core . | . . . Reactor . | . . . Propulsion 2 | 2 . . Treads 2 | 2 . . Leg . | . . . Wheel . | . . . Hover . | . . . Flight . | . . . Utility 4 | 3 1 . Device 3 | 2 1 . Storage 1 | 1 . . Processor . | . . . Hackware . | . . . Protection . | . . . Artifact . | . . . Weapon 5 | 2 3 . Energy Gun . | . . . Energy Cannon . | . . . Ballistic Gun 4 | 2 2 . Ballistic Cannon . | . . . Launcher . | . . . Special Weapon 1 | . 1 . Impact Weapon . | . . . Slashing Weapon . | . . . Piercing Weapon . | . . . Special Melee Weapon . | . . . Unidentified Prototypes . | . . . Parts Lost 6 | . . 6 Power 1 | . . 1 Propulsion 2 | . . 2 Utility 1 | . . 1 Weapon 2 | . . 2 Highest Loss Streak 6 | . . 6 To Critical Strikes . | . . . Average Backups 2 | . 2 4 Power . | . . . Propulsion . | . . 1 Utility . | . . 2 Weapon 1 | . 1 1 Tool/Special . | . . . Unused Backups 1 | . . 1 Power . | . . . Propulsion . | . . . Utility 1 | . . 1 Weapon . | . . . Tool/Special . | . . . Average Slot Usage (%) 98 | . 98 91 Engine 13 | . 14 10 Treads 27 | . 28 24 Device 27 | . 27 28 Ballistic Gun 26 | . 26 26 Peak Build Rating 11 | 9 11 10 Average Rating 9 | 4 10 9 On Entrance 6 | . 9 10 Avg Prop Armor Cover (%) . | . . . Naked Turns . | . . . Heaviest Build 11 | 8 11 10 Greatest Support 40 | 40 40 40 Greatest Overweight (x) 1 | . . 1 Average Overweight (x) . | . . . Largest Inventory Capacity 8 | 8 5 5 Average Capacity 5 | 5 5 5 Most Carried 4 | 1 4 4 Average Carried 2 | . 2 4 Final Capacity 5 | 5 5 5 Final Carried 4 | . 4 4 Class Distribution -------------------- 100% | Mutant Dominant Class ---------------- Mutant | -10/Materials Mutant | -10/Mines Resources | -11 -10 -10 ----------- Run | Yrd Mat Min Matter Collected 439 | 302 137 . Remotely . | . . . Salvage Created 354 | 117 237 . Parts 27 | 9 18 . Haulers Intercepted 1 | . 1 . Recyclers Shooed 2 | 1 1 . Parts Field Recycled . | . . . Retrieved Matter . | . . . Parts Self-Destructed . | . . . Prevented . | . . . Parts Restored . | . . . Kills | -11 -10 -10 ------- Run | Yrd Mat Min Combat Hostiles Destroyed 2 | . 2 . Guns 2 | . 2 . Classes Destroyed 5 | 2 3 . Builder 2 | . 2 . Tunneler 2 | 2 . . Hauler 1 | . 1 . Recycler 2 | 1 1 . Grunt 2 | . 2 . Best Kill Streak 3 | 2 3 . Combat Bots Only 2 | . 2 . Max Kills in Single Turn 1 | 1 1 . Gunslinging . | . . . Exploded . | . . . Melee . | . . . Uniques/NPCs Destroyed . | . . . Combat | -11 -10 -10 -------- Run | Yrd Mat Min Hostile Shots Fired 37 | . 7 30 Missed 8 | . 2 6 Hits 29 | . 5 24 Projectile 29 | . 5 24 AOE 15 | . . 15 Damage Taken 826 | . 54 772 Core 252 | . . 252 Absorbed by Shields . | . . . Core Remaining (%) 100 | 100 . . Volleys Fired 28 | 6 22 . Largest 2 | 2 2 . Hottest 46 | 40 46 . Shots Fired 51 | 12 39 . Gun 45 | 12 33 . Cannon . | . . . Launcher . | . . . Special 6 | . 6 . Kinetic 45 | 12 33 . Thermal 6 | . 6 . Explosive . | . . . Electromagnetic . | . . . Robot Hit Streak 12 | 2 12 . Robot Miss Streak 2 | 2 2 . Penetration Max . | . . . Secondary Targets . | . . . Shots Hit Robots 25 | 7 18 . Core Hits 13 | 4 9 . Critical Kills . | . . . Critical Parts Destroyed . | . . . Critical Strikes . | . . . Melee Attacks . | . . . Impact . | . . . Slashing . | . . . Piercing . | . . . Sneak Attacks . | . . . Combat Hostiles . | . . . Follow-up Attacks . | . . . Damage Inflicted 332 | 82 250 . Guns 329 | 79 250 . Cannons . | . . . Explosions . | . . . Melee . | . . . Ramming 3 | 3 . . Kinetic 329 | 79 250 . Thermal . | . . . Explosive . | . . . Electromagnetic . | . . . Impact . | . . . Slashing . | . . . Piercing . | . . . Highest Corruption . | . . . Average Corruption . | . . . Corruption Purged . | . . . Corruption Blocked . | . . . Overload Shots . | . . . Overflow Damage . | . . . Projectiles . | . . . Explosions . | . . . Melee . | . . . Knockbacks . | . . . Impact . | . . . Kinetic . | . . . Secondary . | . . . Self-Inflicted Damage . | . . . Shots . | . . . Rammed 2 | 2 . . Targets Rammed 2 | 2 . . Kicked . | . . . Crushed . | . . . Highest Temperature . | . . . Average Temperature . | . . . Received Heat Transfer 30 | . 30 . Siege Activations . | . . . Martial Activations . | . . . Shielding Activations . | . . . Robots Disrupted . | . . . Combat Hostiles . | . . . Robots Corrupted . | . . . Combat Hostiles . | . . . Parts Fried . | . . . Impact Corruptions . | . . . Robots Melted . | . . . Combat Hostiles . | . . . Parts Melted . | . . . Heat Transferred . | . . . Parts Sabotaged . | . . . Parts Stolen . | . . . Parts Stripped . | . . . Power Chain Reactions . | . . . Alert | -11 -10 -10 ------- Run | Yrd Mat Min Maximum Alert Level . | . . . Low Security (%) 100 | 100 100 100 Level 1 . | . . . Level 2 . | . . . Level 3 . | . . . Level 4 . | . . . Level 5 . | . . . High Security . | . . . Max Security . | . . . Peak Influence 35 | 5 35 10 Initial 10 | . . 10 Average 1 | . 1 2 Influence Increases 77 | 15 62 . Destroy 0b10 Robot/C 40 | . 40 . Destroy 0b10 Robot/NC 35 | 15 20 . Destroy Leader 2 | . 2 . Influence Decreases 77 | 15 33 29 Entered New Map 19 | . . 19 Time Decay 58 | 15 33 10 Squads Dispatched 1 | . 1 . Investigation . | . . . Extermination . | . . . Reinforcement 1 | . 1 . Assault . | . . . Garrison . | . . . Intercept . | . . . Searches Triggered . | . . . Construction Impeded . | . . . Haulers Reinforced . | . . . Active Scanning Responses . | . . . Cargo Convoy Interrupts . | . . . Stealth | -11 -10 -10 --------- Run | Yrd Mat Min Distress Signals . | . . . Communications Jammed . | . . . Distress Signals . | . . . Times Spotted 15 | . 5 10 Peak Tracking Total 9 | . 4 9 Tactical Retreats . | . . . Traps | -11 -10 -10 ------- Run | Yrd Mat Min Traps Triggered 1 | . 1 . Indirectly . | . . . Trap Hack Attempts . | . . . Triggered . | . . . Disarmed . | . . . Reprogrammed . | . . . Reused . | . . . Traps Extracted . | . . . Installed . | . . . Triggered . | . . . Machines | -11 -10 -10 ---------- Run | Yrd Mat Min Machines Disabled . | . . . Max in Single Turn . | . . . Machines Repaired . | . . . Machines Dismantled . | . . . Machines Sabotaged . | . . . Overloaded Fab Kills . | . . . Hacking | -11 -10 -10 --------- Run | Yrd Mat Min Machines Accessed 1 | . 1 . Terminals . | . . . Fabricators . | . . . Repair Stations . | . . . Recycling Units 1 | . 1 . Scanalyzers . | . . . Garrison Access . | . . . Total Hacks 2 | . 2 . Successful 2 | . 2 . Failed . | . . . Catastrophic . | . . . Database Lockouts . | . . . Manual . | . . . Terminals . | . . . Fabricators . | . . . Repair Stations . | . . . Recycling Units 2 | . 2 . Scanalyzers . | . . . Garrison Access . | . . . Terminal Hacks . | . . . Fabricator Hacks . | . . . Repair Station Hacks . | . . . Recycling Unit Hacks 2 | . 2 . Report Inventory 1 | . 1 . Retrieve Components 1 | . 1 . Scanalyzer . | . . . Garrison Access Hacks . | . . . Unauthorized Hacks . | . . . Terminals . | . . . Fabricators . | . . . Repair Stations . | . . . Recycling Units . | . . . Scanalyzers . | . . . Garrison Access . | . . . Data Cores Recovered . | . . . Used . | . . . Hacking Detections 1 | . 1 . Full Trace Events . | . . . Feedback Events . | . . . Feedback Blocked . | . . . Robot Schematics Acquired . | . . . Robots Built . | . . . Authchips . | . . . Time . | . . . Total Robot Build Rating . | . . . Part Schematics Acquired . | . . . Parts Built . | . . . Authchips . | . . . Time . | . . . Total Part Build Rating . | . . . Part Studies Acquired . | . . . Parts Repaired . | . . . Time . | . . . Parts Recycled . | . . . Recycled Matter . | . . . Retrieved Matter . | . . . Retrieved Components 1 | . 1 . Parts Scanalyzed . | . . . Part Schematics Acquired . | . . . Parts Damaged . | . . . Bothacking | -11 -10 -10 ------------ Run | Yrd Mat Min Used RIF Installer . | . . . Robots Hacked . | . . . Non-combat . | . . . Combat . | . . . Robot Hacks Applied . | . . . Relay Couplers Released . | . . . Fabnet Peak Effective % . | . . . Robots Rewired . | . . . Allies Hacked . | . . . Hacks Repelled . | . . . Allies | -11 -10 -10 -------- Run | Yrd Mat Min Total Allies . | . . . Largest Group . | . . . Highest-Rated Group . | . . . Highest-Rated Ally . | . . . Total Orders . | . . . Ally Attacks . | . . . Total Damage . | . . . Kills . | . . . Allies Corrupted . | . . . Allies Melted . | . . . Intel | -11 -10 -10 ------- Run | Yrd Mat Min Active Infowar (turns) 1013 | 46 888 79 Terrain 981 | 16 888 77 Structural 170 | . 91 79 Seismic 823 | 46 777 . Robot Analysis Total . | . . . Derelict Logs Recovered . | . . . Drone Launches . | . . . Drone Recoveries . | . . . Exploration | -11 -10 -10 ------------- Run | Yrd Mat Min Turns Passed 1071 | 104 888 79 Spaces Moved 411 | 47 310 54 Core 10 | 3 . 7 Treads 401 | 44 310 47 Legs . | . . . Wheels . | . . . Hover . | . . . Flight . | . . . Fastest Speed 50 | 50 160 50 Average Speed 157 | 152 160 146 Slowest Speed 160 | 160 160 160 Overloaded Moves . | . . . Propulsion Burnouts . | . . . Robots Hopped . | . . . Potential Cave-ins . | . . . Cave-ins Triggered . | . . . Exploration Rate (%) 17 | 4 24 23 Regions Visited 2 Branch Regions 1 Pre-discovered Areas . | . . . Known Exits Taken . | . . . Unknown Exits Taken 2 | 1 1 . Scrap Searched . | . . . Spaces Dug . | . . . Terrain Destroyed . | . . . Melee . | . . . Projectile . | . . . AOE . | . . . Terrain Rammed . | . . . Walls Destroyed . | . . . Machines Disabled . | . . . Actions | -11 -10 -10 --------- Run | Yrd Mat Min Total 780 | 64 662 54 Wait 318 | . 318 . Move 410 | 47 309 54 Hop . | . . . Pick Up 4 | . 4 . Fast Attach 9 | 8 1 . Attach 3 | . 3 . Detach 3 | 1 2 . Swap 2 | . 2 . Drop 2 | 1 1 . Fire 28 | 6 22 . Melee . | . . . Ram . | . . . Kick . | . . . Crush 1 | 1 . . Escape Stasis . | . . . Rewire . | . . . Trap . | . . . Miscellaneous . | . . . Route ------- -11/Scrapyard -10/Materials -10/Mines History --------- Turn | Location | Event 14 | -11/Scrapyard | Discovered new exit (range 15) 105 | -11/Scrapyard | Entered Materials 308 | -10/Materials | Build established: Mutant 923 | -10/Materials | Discovered new exit (range 12) 993 | -10/Materials | Entered Mines 1018 | -10/Mines | Assembled infested the area 1071 | -10/Mines | Core integrity fell below 50% 1071 | -10/Mines | Core integrity fell below 20% 1072 | -10/Mines | Destroyed by as-94818 with Assembled Heavy Rifle Last Messages --------------- 01018_ ALERT: Infestation in the mines, dispatching Demolisher response squad. 01022_ K-01 Serf collects debris. 01055_ C-45 Heavy ARC bursts open, deploying its payload. 01055_ D-53 Grenadier unfolds itself. 01056_ The unstable cave ceiling collapses. 01058_ K-01 Serf collects debris. 01059_ The unstable cave ceiling collapses. 01059_ Lgt. Ion Engine destroyed. 01062_ Lgt. Treads destroyed. 01063_ as-43381 destroyed. 01064_ Assault Rifle destroyed. 01065_ as-04404 destroyed. 01067_ The unstable cave ceiling collapses. 01068_ Lgt. Treads destroyed. 01068_ as-62621 destroyed. 01069_ The unstable cave ceiling collapses. 01070_ Hvy. Assault Rifle destroyed. 01070_ Imp. Terrain Scanner destroyed. 01071_ The unstable cave ceiling collapses. Map ----- +----------------------------------------------------+ | | | | | | | | | | | | | | | | | | | | | | | | | | | ??????????????????????#??#???#######?####### | | ????????????????????????????################ | | ??????????????????????????##### ##### | | ???????????????????########### #### | | ???????????????????######### #### | | ???????????????????## | | ???????????????????## #### ## ### | | ???????????????????## ##### ### ### | | ??????????????####### ####### #### | | ?????????????######## ####### ######## "" | | ?????????????### a## ## ## ##### "" | | ?????????????## a #### ##?## "" | | ?????????????## a@ ### ##?## | | ?????????????## a## ## ##?####### | | ?????????????# "#### a ## ##?####### | | ?????????????????### ### #####????? | | ??????????????????### ### #####????? | | ??????????????????### # # ##??#?? | | ???????????????????### # # ####??? | | ??????????????????## #######? | | ??????????????????### # ### | | ??????????????????#### | | ???????????????????#### % | | ????????????????? %! | | ?????????????????######## # | | ?????????????????######### ### | | ???????????????????????### # # ##### # | | ???????????????????#??? ######## # | | ??????????????????????? ###### ###??#### # | | ?????????????????????? ####### ##?????## # | | ??????????????????? ???????? ##???????? # | | ???????????????????## ???????? #???????? # | | ???????????????????## ???????# ????????? # | | ?????????????????????????#???## ??????? ??? | | ????????????????????????#????## ??????????? | | ??????????????????????????????? #?????????? | | ??????????????????????????????? ##?????????? | +----------------------------------------------------+ Best States ------------- Heat Dissipation 25 Energy Generation 10 Energy Capacity 125 Matter Stores 300 Matter Capacity 300 Sight Range 16 Terrain Scan Range 16 Terrain Scan Density 10 Evasion (%) 40 Recoil Reduction 2 Item Schematics ----------------- None Robot Schematics ------------------ None Fabricated ------------ Nothing Repaired ---------- Nothing Studied --------- None Alien Tech Used ----------------- None Achievements -------------- None Challenges ------------ None Game ------ Seed LayeredThiefMatter Manual? 0 Play Time 00:08:15 Cumulative 23.0 hours Start 2026.01.27 @ 16:59:31 End 2026.01.27 @ 17:08:32 Sessions 1 Manual Loads 0 Difficulty Rogue Special Mode None Game No. 45 Rogue 45 Adventurer 0 Explorer 0 Win Type - Total 0 Types 0/0/0/0/0/0/0/0/0/0 Lore% 12 Gallery% 21 Achievement% 17 Wizard Run 0 Options --------- Layout 0 ASCII 0 Keyboard 1 Movement Arrows Keybinds 0 Fullscreen 1 Font 18/Smallcaps Map View 38x25 Zoom Use 78% Tactical HUD 1 Map Filters NONE Filters NONE Steam 1 RUN: 80960e4f-f118-43af-964f-64f7b6adde25